Department Family,Entity,Date,Expense Type,Expense Area,Supplier,Transaction Number,AP Amount
Department of Health,St. Helens&Knowsley Hospitals NHS Trust,31/08/2020,Blood Products,HAEM + BLOOD TRANSFUSION,NHS BLOOD & TRANSPLANT,35328859,"100,601.09"
Department of Health,St. Helens&Knowsley Hospitals NHS Trust,01/08/2020,Catering Equip Disposable,GEN MED ENDOSCOPY H2,AAH PHARMACEUTICALS LTD,35155862,77.52
Department of Health,St. Helens&Knowsley Hospitals NHS Trust,01/08/2020,Catering Equip Disposable,GEN MED ENDOSCOPY H2,AAH PHARMACEUTICALS LTD,35155862,387.60
Department of Health,St. Helens&Knowsley Hospitals NHS Trust,31/08/2020,CNST contributions,CLINICAL NEGLIGENCE,NHSLACONT-T213,,"1,343,893.60 "
Department of Health,St. Helens&Knowsley Hospitals NHS Trust,31/08/2020,Computer Hardware Purch,Trust Recharges,HP INC UK LTD,35312434,300.00
Department of Health,St. Helens&Knowsley Hospitals NHS Trust,31/08/2020,Computer Hardware Purch,Trust Recharges,HP INC UK LTD,35312434,"42,103.20"
Department of Health,St. Helens&Knowsley Hospitals NHS Trust,31/08/2020,Computer Hardware Purch,Trust Recharges,HP INC UK LTD,35312434,"8,480.64"
Department of Health,St. Helens&Knowsley Hospitals NHS Trust,31/08/2020,Computer Maintenance,FINANCE DIRECTORATE HQ,CIVICA UK LTD,31105551,"1,875.00"
Department of Health,St. Helens&Knowsley Hospitals NHS Trust,31/08/2020,Computer Maintenance,HISTOPATHOLOGY/MORTUARY,AES MEDICAL,35274333,"24,284.39"
Department of Health,St. Helens&Knowsley Hospitals NHS Trust,31/08/2020,Computer Maintenance,COVID,SUNRISE SOFTWARE LTD,35396115,"21,000.00"
Department of Health,St. Helens&Knowsley Hospitals NHS Trust,31/08/2020,Computer Maintenance,COVID,SUNRISE SOFTWARE LTD,35396115,"3,600.00"
Department of Health,St. Helens&Knowsley Hospitals NHS Trust,31/08/2020,Computer Maintenance,COVID,SUNRISE SOFTWARE LTD,35396115,648.00
Department of Health,St. Helens&Knowsley Hospitals NHS Trust,31/08/2020,Computer Maintenance,COVID,SUNRISE SOFTWARE LTD,35396115,"2,205.00"
Department of Health,St. Helens&Knowsley Hospitals NHS Trust,31/08/2020,Computer Maintenance,COVID,SUNRISE SOFTWARE LTD,35396115,"12,250.00"
Department of Health,St. Helens&Knowsley Hospitals NHS Trust,31/08/2020,Computer Maintenance,COVID,SUNRISE SOFTWARE LTD,35396115,"7,940.60"
Department of Health,St. Helens&Knowsley Hospitals NHS Trust,10/08/2020,Continence Products,COMMUNITY CONTINENCE SERVICE,ESSITY UK LTD,35227720,"34,371.60"
Department of Health,St. Helens&Knowsley Hospitals NHS Trust,16/08/2020,Data Lines,HIS programme costs - shared services,VIRGIN MEDIA BUSINESS LTD,35282260,"34,800.00"
Department of Health,St. Helens&Knowsley Hospitals NHS Trust,31/08/2020,Data Lines,HIS programme costs - shared services,VIRGIN MEDIA BUSINESS LTD,35312146,"75,895.51"
Department of Health,St. Helens&Knowsley Hospitals NHS Trust,06/08/2020,Professional Indemnity,NORTH WEST HEE,MDDUS,35190377,"27,144.85"
Department of Health,St. Helens&Knowsley Hospitals NHS Trust,31/08/2020,IT Additions,Balance Sheet,SPECIALIST COMPUTER CENTRES PLC,35155894,"84,973.48"
Department of Health,St. Helens&Knowsley Hospitals NHS Trust,31/08/2020,Laboratory Equipment,MICROBIOLOGY DEPT,CHRYSTAL CONSULTING LTD,35155901,"3,362.21"
Department of Health,St. Helens&Knowsley Hospitals NHS Trust,31/08/2020,Laboratory Equipment,MICROBIOLOGY DEPT,CHRYSTAL CONSULTING LTD,35155901,672.44
Department of Health,St. Helens&Knowsley Hospitals NHS Trust,31/08/2020,Laboratory Equipment,MICROBIOLOGY DEPT,CHRYSTAL CONSULTING LTD,35156027,"24,473.54"
Department of Health,St. Helens&Knowsley Hospitals NHS Trust,31/08/2020,Laboratory Equipment,MICROBIOLOGY DEPT,CHRYSTAL CONSULTING LTD,35156027,"4,894.71"
Department of Health,St. Helens&Knowsley Hospitals NHS Trust,31/08/2020,Laboratory Reagents,MICROBIOLOGY DEPT,CHRYSTAL CONSULTING LTD,35155899,"114,684.71"
Department of Health,St. Helens&Knowsley Hospitals NHS Trust,31/08/2020,Laboratory Reagents,MICROBIOLOGY DEPT,CHRYSTAL CONSULTING LTD,35155899,"22,936.94"
Department of Health,St. Helens&Knowsley Hospitals NHS Trust,31/08/2020,Laboratory Reagents,MICROBIOLOGY DEPT,CHRYSTAL CONSULTING LTD,35155901,"130,268.50"
Department of Health,St. Helens&Knowsley Hospitals NHS Trust,31/08/2020,Laboratory Reagents,MICROBIOLOGY DEPT,CHRYSTAL CONSULTING LTD,35155901,"20,887.25"
Department of Health,St. Helens&Knowsley Hospitals NHS Trust,31/08/2020,Laboratory Reagents,MICROBIOLOGY DEPT,CHRYSTAL CONSULTING LTD,35155901,"99,596.44"
Department of Health,St. Helens&Knowsley Hospitals NHS Trust,31/08/2020,Laboratory Reagents,MICROBIOLOGY DEPT,CHRYSTAL CONSULTING LTD,35155901,"50,150.44"
Department of Health,St. Helens&Knowsley Hospitals NHS Trust,01/08/2020,Lease Rents,HIS programme costs - shared services,OAKMERE ESTATES (LIVERPOOL) LTD,35235323,"34,500.00"
Department of Health,St. Helens&Knowsley Hospitals NHS Trust,31/08/2020,Lease Rents,INFORMATION DEPARTMENT,OAKMERE ESTATES (LIVERPOOL) LTD,35312148,"29,082.00"
Department of Health,St. Helens&Knowsley Hospitals NHS Trust,01/08/2020,Med & Surg Equip General,THEATRES MAIN ST HELEN'S,AAH PHARMACEUTICALS LTD,35155862,4.35
Department of Health,St. Helens&Knowsley Hospitals NHS Trust,01/08/2020,Med & Surg Equip General,THEATRES MAIN ST HELEN'S,AAH PHARMACEUTICALS LTD,35155862,21.75
Department of Health,St. Helens&Knowsley Hospitals NHS Trust,31/08/2020,Med & Surg Equip General,WHIS THEATRES ANCIL & EMERG SUP STAFF,UK MEDICAL LTD,35294052,"13,995.00"
Department of Health,St. Helens&Knowsley Hospitals NHS Trust,31/08/2020,Med & Surg Equip General,WHIS THEATRES ANCIL & EMERG SUP STAFF,UK MEDICAL LTD,35294052,"2,799.00"
Department of Health,St. Helens&Knowsley Hospitals NHS Trust,31/08/2020,Med Equip Additions,Balance Sheet,UK MEDICAL LTD,35294052,"12,995.00"
Department of Health,St. Helens&Knowsley Hospitals NHS Trust,31/08/2020,Med Equip Additions,Balance Sheet,UK MEDICAL LTD,35294052,"2,599.00"
Department of Health,St. Helens&Knowsley Hospitals NHS Trust,13/08/2020,Miscellaneous Expenditure,PFI ENABLING WORKS,NEW HOSPITALS (ST HELENS & KNOWSLEY) LTD,35262608,"15,910,795.79"
Department of Health,St. Helens&Knowsley Hospitals NHS Trust,13/08/2020,Miscellaneous Expenditure,PFI ENABLING WORKS,NEW HOSPITALS (ST HELENS & KNOWSLEY) LTD,35262609,"1,007,735.72"
Department of Health,St. Helens&Knowsley Hospitals NHS Trust,31/08/2020,Miscellaneous Expenditure,HSDU WHISTON,SYNERGY HEALTH (UK) LTD,35304962,"175,882.15"
Department of Health,St. Helens&Knowsley Hospitals NHS Trust,31/08/2020,Miscellaneous Expenditure,EAST OF ENGLAND HEE,MDU SERVICES LTD,35385771,"84,770.00"
Department of Health,St. Helens&Knowsley Hospitals NHS Trust,31/08/2020,Miscellaneous Expenditure,PFI ENABLING WORKS,NEW HOSPITALS (ST HELENS & KNOWSLEY) LTD,35396724,"1,044,913.85"
Department of Health,St. Helens&Knowsley Hospitals NHS Trust,31/08/2020,Various,Various,SUPPLY CHAIN COORDINATION LIMITED,35312076,"125,849.66"
Department of Health,St. Helens&Knowsley Hospitals NHS Trust,31/08/2020,Various,Various,SUPPLY CHAIN COORDINATION LIMITED,35312110,"144,362.51"
Department of Health,St. Helens&Knowsley Hospitals NHS Trust,31/08/2020,Various,Various,SUPPLY CHAIN COORDINATION LIMITED,35405771,"21,790.78"
Department of Health,St. Helens&Knowsley Hospitals NHS Trust,12/08/2020,Other recvables - Current,Balance Sheet,PLUS US MEDICAL CARE SERVICES LTD,35250722,612.16
Department of Health,St. Helens&Knowsley Hospitals NHS Trust,12/08/2020,Other recvables - Current,Balance Sheet,PLUS US MEDICAL CARE SERVICES LTD,35250722,"91,293.07"
Department of Health,St. Helens&Knowsley Hospitals NHS Trust,13/08/2020,Other recvables - Current,Balance Sheet,FIDELITI LTD,35262606,"60,644.01"
Department of Health,St. Helens&Knowsley Hospitals NHS Trust,31/08/2020,Other recvables - Current,Balance Sheet,PLUS US MEDICAL CARE SERVICES LTD,35306308,586.33
Department of Health,St. Helens&Knowsley Hospitals NHS Trust,31/08/2020,Other recvables - Current,Balance Sheet,PLUS US MEDICAL CARE SERVICES LTD,35306308,"88,618.48"
Department of Health,St. Helens&Knowsley Hospitals NHS Trust,31/08/2020,Protective Clothing,COVID,INTERSURGICAL LTD,35208363,"6,500.00"
Department of Health,St. Helens&Knowsley Hospitals NHS Trust,31/08/2020,Protective Clothing,COVID,INTERSURGICAL LTD,35208363,"9,750.00"
Department of Health,St. Helens&Knowsley Hospitals NHS Trust,31/08/2020,Protective Clothing,COVID,INTERSURGICAL LTD,35208363,"9,750.00"
Department of Health,St. Helens&Knowsley Hospitals NHS Trust,31/08/2020,Protective Clothing,COVID,INTERSURGICAL LTD,35208363,"5,200.00"
Department of Health,St. Helens&Knowsley Hospitals NHS Trust,31/08/2020,Rates,RATES/WATER ST HELENS,ST HELENS COUNCIL,35353731,"60,416.00"
Department of Health,St. Helens&Knowsley Hospitals NHS Trust,31/08/2020,Rates,RATES/WATER WHISTON,KNOWSLEY METROPOLITAN BOROUGH COUNCIL,35353740,"305,152.00"
Department of Health,St. Helens&Knowsley Hospitals NHS Trust,31/08/2020,Rent,HR Projects,OAKMERE ESTATES (LIVERPOOL) LTD,35312149,"2,535.60"
Department of Health,St. Helens&Knowsley Hospitals NHS Trust,31/08/2020,Rent,NORTH WEST HEE,OAKMERE ESTATES (LIVERPOOL) LTD,35312149,"45,165.60"
Department of Health,St. Helens&Knowsley Hospitals NHS Trust,31/08/2020,Rent,WORKFORCE INTELLIGENCE,OAKMERE ESTATES (LIVERPOOL) LTD,35312149,"6,298.80"
Department of Health,St. Helens&Knowsley Hospitals NHS Trust,31/08/2020,Rent,NEWTON INTERMEDIATE CARE SERVICE,COMMUNITY HEALTH PARTNERSHIPS LTD,35373316,"107,521.49"
Department of Health,St. Helens&Knowsley Hospitals NHS Trust,10/08/2020,SrvcsRecd-FoundationTrust,A + E MEDICAL STAFF WH,NORTH WEST BOROUGHS HEALTHCARE NHS FOUNDATION TRUST,35227723,"83,777.00"
Department of Health,St. Helens&Knowsley Hospitals NHS Trust,01/08/2020,SrvcsRecd-FoundationTrust,COVID,LIVERPOOL WOMENS HOSPITAL NHS FOUNDATION TRUST,35249742,"81,110.00"
Department of Health,St. Helens&Knowsley Hospitals NHS Trust,01/08/2020,SrvcsRecd-FoundationTrust,COVID,ALDER HEY CHILDRENS NHS FOUNDATION TRUST,35249743,"46,680.00"
Department of Health,St. Helens&Knowsley Hospitals NHS Trust,31/08/2020,SrvcsRecd-FoundationTrust,Interventional Radiology,LIVERPOOL UNIVERSITY HOSPITALS NHS FOUNDATION TRUST,35385833,"27,354.15"
Department of Health,St. Helens&Knowsley Hospitals NHS Trust,31/08/2020,SrvcsRecd-FoundationTrust,PATHOLOGY GENERAL,LANCASHIRE TEACHING HOSPITALS NHS FOUNDATION TRUST,35385924,"28,673.06"
Department of Health,St. Helens&Knowsley Hospitals NHS Trust,01/08/2020,Stocks Raw Materials,Balance Sheet,AAH PHARMACEUTICALS LTD,35155862,"13,518.56"
Department of Health,St. Helens&Knowsley Hospitals NHS Trust,01/08/2020,Stocks Raw Materials,Balance Sheet,AAH PHARMACEUTICALS LTD,35155862,"58,220.65"
Department of Health,St. Helens&Knowsley Hospitals NHS Trust,01/08/2020,Stocks Raw Materials,Balance Sheet,ALLIANCE HEALTHCARE DISTRIBUTION LTD,35155863,"17,041.28"
Department of Health,St. Helens&Knowsley Hospitals NHS Trust,01/08/2020,Stocks Raw Materials,Balance Sheet,ALLIANCE HEALTHCARE DISTRIBUTION LTD,35155863,"74,745.00"
Department of Health,St. Helens&Knowsley Hospitals NHS Trust,01/08/2020,Stocks Raw Materials,Balance Sheet,HEALTHCARE AT HOME LTD,35155864,"75,433.11"
Department of Health,St. Helens&Knowsley Hospitals NHS Trust,01/08/2020,Stocks Raw Materials,Balance Sheet,AAH PHARMACEUTICALS LTD,35155865,"12,520.90"
Department of Health,St. Helens&Knowsley Hospitals NHS Trust,01/08/2020,Stocks Raw Materials,Balance Sheet,AAH PHARMACEUTICALS LTD,35155865,"55,215.55"
Department of Health,St. Helens&Knowsley Hospitals NHS Trust,01/08/2020,Stocks Raw Materials,Balance Sheet,HEALTHCARE AT HOME LTD,35235317,"32,127.93"
Department of Health,St. Helens&Knowsley Hospitals NHS Trust,01/08/2020,Stocks Raw Materials,Balance Sheet,ALLOGA UK LTD,35235318,"38,466.42"
Department of Health,St. Helens&Knowsley Hospitals NHS Trust,14/08/2020,Stocks Raw Materials,Balance Sheet,NOVARTIS PHARMACEUTICALS UK LTD,35275830,"17,790.19"
Department of Health,St. Helens&Knowsley Hospitals NHS Trust,14/08/2020,Stocks Raw Materials,Balance Sheet,NOVARTIS PHARMACEUTICALS UK LTD,35275830,"5,241.60"
Department of Health,St. Helens&Knowsley Hospitals NHS Trust,14/08/2020,Stocks Raw Materials,Balance Sheet,NOVARTIS PHARMACEUTICALS UK LTD,35275830,"2,620.80"
Department of Health,St. Helens&Knowsley Hospitals NHS Trust,31/08/2020,Stocks Raw Materials,Balance Sheet,ALLOGA UK LTD,35381527,"27,843.27"
Department of Health,St. Helens&Knowsley Hospitals NHS Trust,31/08/2020,Stocks Raw Materials,Balance Sheet,ALLIANCE HEALTHCARE DISTRIBUTION LTD,35394093,"14,864.61"
Department of Health,St. Helens&Knowsley Hospitals NHS Trust,31/08/2020,Stocks Raw Materials,Balance Sheet,ALLIANCE HEALTHCARE DISTRIBUTION LTD,35394093,"78,486.15"
Department of Health,St. Helens&Knowsley Hospitals NHS Trust,31/08/2020,Water,RATES/WATER WHISTON,WATER PLUS,35304971,"70,179.58"
